[Event "GER-ch Youth-U14 2022"]
[Site "Willingen"]
[Date "2022.06.05"]
[Round "1.1"]
[White "Winkler, Yonathan"]
[Black "Deuer, Marius"]
[Result "0-1"]
[ECO "B10"]
[WhiteElo "1699"]
[BlackElo "2359"]
[Annotator "TA"]
[PlyCount "72"]
[EventDate "2022.06.05"]
[EventType "swiss"]
[EventRounds "9"]
[EventCountry "GER"]
[SourceTitle "playchess.com"]
[Source "ChessBase"]
[SourceQuality "1"]
[TimeControl "40/4500+30:900+30"]

{[%evp 9,72,6,2,16,32,0,12,29,19,4,11,-12,-10,-13,6,-10,-2,-17,0,-3,33,-23,-10,-22,0,0,0,0,0,-30,-34,-59,-58,-77,-40,-46,-47,-54,-59,-56,-22,-46,-38,-78,-47,-122,-90,-138,-131,-222,-192,-207,-158,-258,-254,-230,-254,-287,-281,-285,-285,-271,-200,-29998,-29999]} 1. e4 {[%emt 0:00:00]} c6 {[%emt 0:00:00]} 2. Nf3 {[%emt 0:00:00]} d5 {[%emt 0:00:00]} 3. d3 {[%emt 0:00:00]} Qc7 {[%emt 0:00:00]} 4. Nc3 {[%emt 0:00:00]} dxe4 {[%emt 0:00:00]} 5. dxe4 {[%emt 0:00:00]} e5 {[%emt 0:00:00]} 6. Bc4 {[%emt 0:00:00] B10: Caro-Kann: 2 d3 and 2 c4.} Bg4 {[%emt 0:00:00] [#]} 7. Bd2 $146 {[%emt 0:00:00]} ({Predecessor:} 7. h3 Bh5 8. g4 Bg6 9. Nh4 Nd7 10. a3 Ngf6 11. Qf3 Nc5 12. Nxg6 hxg6 13. Be3 {1-0 (23) Kamsky,G (2657)-Harsha,B (2485) Chess.com INT 2022}) 7... Nf6 {[%emt 0:00:56][%cal Bg8f6,Bf6d7,Bd7c5][%mdl 32]} 8. h3 {[%emt 0:02:18] The position is equal.} Bh5 {[%emt 0:01:46]} 9. g4 {[%emt 0:03:58]} Bg6 {[%emt 0:03:11]} 10. Qe2 {[%emt 0:00:44][%cal Of3e5]} b5 {[%emt 0:09:11]} 11. Bd3 {[%emt 0:14:38]} Nfd7 {[%emt 0:04:36]} 12. Nh4 {[%emt 0:04:38]} Nc5 {[%emt 0:08:38]} 13. Nf5 {[%emt 0:05:33]} b4 {[%emt 0:05:51]} 14. Nd1 {[%emt 0:01:34]} Ne6 {[%emt 0:00:23]} 15. c3 {[%emt 0:02:20]} (15. Bc4 $14) 15... a5 {[%emt 0:10:19]} 16. Bc4 {[%emt 0:02:36]} Nd7 {[%emt 0:00:56]} 17. Bxe6 {[%emt 0:05:49]} fxe6 {[%emt 0:00:02]} 18. Nh4 {[%emt 0:00:10]} Bf7 {[%emt 0:01:08]} 19. Be3 {[%emt 0:06:15]} Be7 {[%emt 0:02:13]} 20. g5 {[%emt 0:02:34]} Nc5 {[%emt 0:04:53]} 21. Qc4 {[%emt 0:01:33]} Qd6 {[%emt 0:03:47] Strongly threatening ...Nd3+.} 22. Bxc5 {[%emt 0:10:17]} Qxc5 {[%emt 0:00:20]} 23. Qxc5 {[%emt 0:00:07]} Bxc5 {[%emt 0:00:02]} 24. Nf3 {[%emt 0:00:46]} Bd6 {[%emt 0:06:53]} 25. Ne3 {[%emt 0:01:27]} Bh5 {[%emt 0:00:10]} 26. Nd2 {[%emt 0:00:19]} O-O {[%emt 0:00:18]} 27. Rg1 {[%emt 0:02:18]} ({Better is} 27. Nec4 $15 Be7 28. h4) 27... Rf4 {[%emt 0:01:17]} 28. Ng2 {[%emt 0:01:13]} (28. Ng4 $142) 28... Rf7 $17 {[%emt 0:01:42] Black is more active.} 29. Rc1 {[%emt 0:07:34]} (29. Ne3 $17) 29... Raf8 $19 {[%emt 0:02:43]} 30. Rf1 {[%emt 0:00:26]} Be7 {[%emt 0:02:01]} 31. h4 {[%emt 0:04:28] [#]} (31. g6 $17 {was necessary.} Bxg6 32. Ke2) 31... bxc3 $1 {[%emt 0:02:27]} 32. bxc3 {[%emt 0:01:48]} Bc5 {[%emt 0:00:49] A strong pair of Bishops.} 33. Ne3 {[%emt 0:00:26]} Rf4 {[%emt 0:00:49][%cal Bf7f4,Bf4h4,Bh4e4][%mdl 32]} 34. Rc2 {[%emt 0:03:36]} Rxh4 {[%emt 0:00:52]} 35. Nec4 {[%emt 0:00:09]} Rd8 {[%emt 0:08:36][%cal Oh4e4] ...Rxe4+! is the strong threat.} 36. Nxe5 $2 {[%emt 0:00:48] [#]} (36. f3 $19) 36... Rxe4+ $3 {[%emt 0:00:08][%mdl 512] Weighted Error Value: White=0.36/Black=0.11 (very precise)} 0-1

[Event "GER-ch Youth-U14 2022"]
[Site "Willingen"]
[Date "2022.06.05"]
[Round "1.2"]
[White "Sreyas Payyappat"]
[Black "Kieselbach, Jannik"]
[Result "1-0"]
[ECO "B90"]
[WhiteElo "2169"]
[BlackElo "1631"]
[Annotator "TA"]
[PlyCount "51"]
[EventDate "2022.06.05"]
[EventType "swiss"]
[EventRounds "9"]
[EventCountry "GER"]
[SourceTitle "playchess.com"]
[Source "ChessBase"]
[SourceQuality "1"]
[TimeControl "40/4500+30:900+30"]

{[%evp 9,51,29,28,0,10,9,29,33,30,5,0,1,26,36,93,85,169,157,263,234,293,279,295,297,273,240,309,306,531,557,671,660,626,591,803,375,29980,1459,3350,1629,29990,29991,29991,29991]} 1. e4 {[%emt 0:00:00]} c5 {[%emt 0:00:00]} 2. Nf3 {[%emt 0:00:00]} d6 {[%emt 0:00:00]} 3. d4 {[%emt 0:00:00]} cxd4 {[%emt 0:00:00]} 4. Nxd4 {[%emt 0:00:00]} Nf6 {[%emt 0:00:00]} 5. Nc3 {[%emt 0:00:00]} a6 {[%emt 0:00:00]} 6. h4 {[%emt 0:00:00] B90: Sicilian Najdorf: Unusual White 6th moves, 6 Be3 Ng4 and 6 Be3 e5.} e5 {[%emt 0:00:00]} 7. Nb3 {[%emt 0:00:00]} Be6 {[%emt 0:00:00]} 8. f4 {[%emt 0:00:00] White has an edge.} exf4 {[%emt 0:00:00]} 9. Bxf4 {[%emt 0:00:00]} Nc6 {[%emt 0:00:00]} 10. Qd2 {[%emt 0:00:00]} Be7 {[%emt 0:00:00]} 11. O-O-O {[%emt 0:00:00] [#]} Bg4 $146 {[%emt 0:03:36]} (11... Ng4 $14) ({Predecessor:} 11... Ne5 12. h5 O-O 13. Nd4 Rc8 14. Nf5 Bxf5 15. exf5 h6 16. Be2 Re8 17. Rh3 b5 {1-0 (58) Erigaisi,A (2660)-Karthik,V (2485) New Delhi 2022}) 12. Be2 $16 {[%emt 0:00:00]} Bxe2 {[%emt 0:00:51]} (12... O-O $16) 13. Qxe2 $18 {[%emt 0:00:00] [#] aiming for e5.} Qc7 {[%emt 0:04:53]} (13... Qc8 $16 {might work better.} 14. Nd5 (14. Bxd6 O-O $16) 14... O-O) 14. g4 {[%emt 0:00:14][%cal Bg2g4,Bg4g5][%mdl 32]} ({Weaker is} 14. Nd5 Nxd5 15. exd5 (15. Rxd5 O-O $14) 15... Ne5 $16) 14... O-O {[%emt 0:11:11]} 15. g5 {[%emt 0:01:50]} Ne8 {[%emt 0:02:02]} 16. Nd5 {[%emt 0:01:13]} Qd8 {[%emt 0:03:03]} 17. Rhg1 {[%emt 0:04:57]} Kh8 {[%emt 0:06:32]} 18. h5 {[%emt 0:04:53]} Ne5 $2 {[%emt 0:03:43]} (18... a5 19. Nd4 Nxd4 20. Rxd4 Rc8) 19. Nd4 {[%emt 0:03:14]} Nc7 {[%emt 0:02:46]} 20. Nxe7 {[%emt 0:03:51]} Qxe7 {[%emt 0:00:00]} 21. Nf5 $1 {[%emt 0:00:00][%csl LRd6,LRe7]} Qe6 {[%emt 0:02:48]} 22. h6 {[%emt 0:01:32]} (22. Rxd6 $142 Qc4 {[#]} 23. h6 $1) 22... Rfd8 $2 {[%emt 0:01:20]} (22... g6 $18) 23. hxg7+ {[%emt 0:00:49]} Kg8 {[%emt 0:00:08]} 24. Qh2 {[%emt 0:00:13]} (24. Rh1 $142 Re8 25. Qh2) 24... Ng6 {[%emt 0:01:03]} 25. Rh1 {[%emt 0:00:37][%csl Gh1][%cal Rh2h7]} Nf8 {[%emt 0:01:12]} 26. gxf8=Q+ {[%emt 0:00:13] Weighted Error Value: White=0.27 (precise) /Black=0.99} 1-0

[Event "GER-ch Youth-U14 2022"]
[Site "Willingen"]
[Date "2022.06.05"]
[Round "1.3"]
[White "Mueller, Maximilian"]
[Black "Ermitsch, Magnus"]
[Result "0-1"]
[ECO "B12"]
[WhiteElo "2299"]
[BlackElo "2222"]
[Annotator "TA"]
[PlyCount "108"]
[EventDate "2022.06.05"]
[EventType "swiss"]
[EventRounds "9"]
[EventCountry "GER"]
[SourceTitle "playchess.com"]
[Source "ChessBase"]
[SourceQuality "1"]
[TimeControl "40/4500+30:900+30"]

{[%evp 12,108,7,12,14,2,0,0,0,-15,27,-29,-31,-53,-34,-70,-70,-123,-89,-117,-112,-114,-85,-85,-66,-61,-67,-70,-66,-62,-60,-69,-23,-87,-77,-104,-97,-110,-103,-103,-108,-112,-116,-126,-119,-125,-75,-83,0,-132,-116,-133,-130,-177,-177,-234,-234,-253,-228,-321,-235,-314,-220,-289,-307,-312,-293,-339,-265,-264,-199,-268,-262,-411,-395,-682,-692,-669,-655,-690,-675,-675,-658,-627,-610,-566,-588,-560,-502,-541,-532,-12839,-12839,-12840,-9248,-12843,-12843,-29984,-29985]} 1. e4 {[%emt 0:00:00]} c6 {[%emt 0:00:00]} 2. d4 {[%emt 0:00:00]} d5 {[%emt 0:00:00]} 3. e5 {[%emt 0:00:00]} Bf5 {[%emt 0:00:00]} 4. h4 {[%emt 0:00:00]} h5 {[%emt 0:00:00]} 5. Bd3 {[%emt 0:00:00]} Bxd3 {[%emt 0:00:00]} 6. Qxd3 {[%emt 0:00:00]} e6 {[%emt 0:00:00]} 7. Nf3 {[%emt 0:00:00]} Qa5+ {[%emt 0:00:00] B12: Caro-Kann: Advance Variation.} 8. c3 {[%emt 0:00:00]} Qa6 {[%emt 0:00:00]} 9. Qxa6 {[%emt 0:00:00]} Nxa6 {[%emt 0:00:00] [#] The position is equal.} 10. b3 $146 {[%emt 0:00:00]} ({Predecessor:} 10. Bg5 Ne7 11. Nbd2 Nf5 12. Ke2 Be7 13. Bxe7 Kxe7 14. Nf1 Nb8 15. Ne3 Nxe3 16. Kxe3 {½-½ (51) Gara,A (2384)-Muzychuk,A (2555) Astana 2019}) 10... Rc8 {[%emt 0:00:00]} 11. Ba3 {[%emt 0:04:35]} (11. b4 $142) 11... c5 $11 {[%emt 0:00:00]} 12. O-O {[%emt 0:03:18]} Nh6 {[%emt 0:00:55]} 13. dxc5 {[%emt 0:15:52]} Nxc5 {[%emt 0:04:27]} 14. Nd4 {[%emt 0:00:13]} (14. Bxc5 $15 Bxc5 15. a4) 14... a6 {[%emt 0:01:55]} 15. Bxc5 {[%emt 0:08:09]} Bxc5 {[%emt 0:00:57]} 16. Nd2 {[%emt 0:00:31]} Be7 {[%emt 0:20:01]} 17. c4 {[%emt 0:06:54]} Bxh4 {[%emt 0:07:14]} 18. cxd5 {[%emt 0:00:53]} exd5 {[%emt 0:00:24]} 19. N2f3 $1 {[%emt 0:04:04]} Be7 {[%emt 0:02:24]} 20. e6 {[%emt 0:00:57]} O-O {[%emt 0:01:57]} 21. Rad1 {[%emt 0:04:50]} Bf6 {[%emt 0:04:11]} (21... Ng4 $15) 22. Rfe1 {[%emt 0:06:10]} (22. exf7+ $11 Kxf7 23. Ne2) 22... Rfe8 $17 {[%emt 0:01:40]} 23. Kf1 {[%emt 0:06:43]} g5 {[%emt 0:04:31]} 24. exf7+ {[%emt 0:05:22]} Kxf7 {[%emt 0:02:08]} ({Don't play} 24... Nxf7 $6 25. Rxe8+ Rxe8 26. Nf5 $15) 25. Rxe8 {[%emt 0:00:04]} Rxe8 {[%emt 0:01:08]} 26. Nc2 {[%emt 0:00:11]} Rd8 {[%emt 0:03:24]} 27. Nb4 {[%emt 0:01:51]} Ke6 {[%emt 0:13:02]} 28. Re1+ {[%emt 0:00:28]} Kd6 {[%emt 0:01:52]} ({Black should try} 28... Kf5 {White must now prevent ...g4.} 29. Rc1 Rd7) 29. Rd1 {[%emt 0:00:05]} Ke6 {[%emt 0:00:06]} (29... Kc5 $142 30. Nd3+ Kd6) 30. Re1+ $1 {[%emt 0:00:07]} Kf5 {[%emt 0:01:08] [#] And now ...g4 would win. Black continues to play with concentration.} 31. Rd1 {[%emt 0:07:09]} d4 {[%emt 0:02:11]} 32. Nd3 {[%emt 0:01:58]} (32. Nc2 $17) 32... g4 $19 {[%emt 0:05:51]} 33. Ng1 {[%emt 0:02:08]} (33. Nfe1 $142) 33... Nf7 {[%emt 0:03:16]} 34. Ne2 {[%emt 0:00:16]} h4 {[%emt 0:00:40] Against Ng3+} 35. Nc5 {[%emt 0:03:08]} (35. Ne1 $142) 35... Rd5 {[%emt 0:00:31]} 36. b4 {[%emt 0:00:26]} a5 {[%emt 0:00:47]} 37. a3 {[%emt 0:00:16]} axb4 {[%emt 0:01:19]} 38. axb4 {[%emt 0:00:07]} b6 {[%emt 0:01:29]} 39. Na4 {[%emt 0:01:46]} Rd6 {[%emt 0:02:18]} 40. Nb2 {[%emt 0:02:19]} b5 {[%emt 0:01:34]} 41. Nd3 {[%emt 0:16:41]} (41. Rd3 {is a better defense.}) 41... Ne5 {[%emt 0:00:00] Strongly threatening ...Nxd3.} 42. Nxe5 {[%emt 0:00:00]} (42. Nc5 {was necessary.}) 42... Kxe5 {[%emt 0:00:00][%mdl 4096] Endgame KRB-KRN} 43. g3 $2 {[%emt 0:00:00]} (43. Nc1) 43... h3 {[%emt 0:01:43]} 44. Nf4 {[%emt 0:00:00]} Kf5 {[%emt 0:05:42]} 45. Nd3 {[%emt 0:00:00]} Ra6 {[%emt 0:01:38]} 46. Nc5 {[%emt 0:00:00]} Ra2 {[%emt 0:01:07]} 47. Kg1 {[%emt 0:00:00]} Rb2 {[%emt 0:01:08]} 48. Nd3 {[%emt 0:00:00]} Rb3 {[%emt 0:00:26]} 49. Kh2 {[%emt 0:00:00]} Bg7 {[%emt 0:02:05]} 50. f3 {[%emt 0:00:00]} gxf3 {[%emt 0:00:29]} 51. Kxh3 {[%emt 0:00:00] [#]} Rxd3 $1 {[%emt 0:02:19][%mdl 512]} 52. Rxd3 {[%emt 0:00:00]} Ke4 {[%emt 0:00:04]} 53. Ra3 {[%emt 0:00:00]} d3 {[%emt 0:00:31][%cal Bd4d3,Bd3d2][%mdl 32] ( -> ...d2)} 54. Ra8 {[%emt 0:00:42]} d2 {[%emt 0:00:21] Weighted Error Value: White=0.62/Black=0.15 (very precise)} 0-1

[Event "GER-ch Youth-U14 2022"]
[Site "Willingen"]
[Date "2022.06.05"]
[Round "1.4"]
[White "Hagner, Bennet"]
[Black "Torosyan, Bagrat"]
[Result "1-0"]
[ECO "B97"]
[WhiteElo "2186"]
[BlackElo "1683"]
[Annotator "TA"]
[PlyCount "57"]
[EventDate "2022.06.05"]
[EventType "swiss"]
[EventRounds "9"]
[EventCountry "GER"]
[SourceTitle "playchess.com"]
[Source "ChessBase"]
[SourceQuality "1"]
[TimeControl "40/4500+30:900+30"]

{[%evp 16,57,21,20,14,15,19,18,17,11,16,12,20,12,25,0,0,0,20,-42,-27,-30,-28,-33,-25,-41,-25,-55,-54,-57,76,83,126,147,180,180,269,254,528,516,969,958,29995,29996]} 1. e4 {[%emt 0:00:00]} c5 {[%emt 0:00:00]} 2. Nf3 {[%emt 0:00:00]} d6 {[%emt 0:00:00]} 3. d4 {[%emt 0:00:00]} cxd4 {[%emt 0:00:00]} 4. Nxd4 {[%emt 0:00:00]} Nf6 {[%emt 0:00:00]} 5. Nc3 {[%emt 0:00:00]} a6 {[%emt 0:00:00]} 6. Bg5 {[%emt 0:00:00]} e6 {[%emt 0:00:00]} 7. f4 {[%emt 0:00:00]} Qb6 {[%emt 0:00:00]} 8. a3 {[%emt 0:00:00]} Nc6 {[%emt 0:00:00]} 9. Nb3 $1 {[%emt 0:00:00]} Be7 {[%emt 0:00:00] B97: Sicilian Najdorf: Poisoned Pawn.} 10. Qd2 {[%emt 0:00:00]} h6 {[%emt 0:00:00]} 11. Bxf6 {[%emt 0:00:00]} Bxf6 {[%emt 0:00:00] The position is equal.} 12. O-O-O {[%emt 0:00:00]} Be7 {[%emt 0:01:17]} 13. h4 {[%emt 0:05:19]} Qc7 {[%emt 0:03:51]} 14. g4 {[%emt 0:11:34]} b5 {[%emt 0:03:37] [#]} 15. Bg2 $146 {[%emt 0:03:59]} ({Predecessor:} 15. Be2 Rb8 16. g5 b4 17. axb4 Rxb4 18. Kb1 Qb6 19. Bd3 Bb7 20. Na2 Ra4 21. Rhf1 hxg5 22. hxg5 {½-½ (72) Nickel,A (2642)-Moura,A (2508) ICCF email 2010}) 15... Rb8 {[%emt 0:01:09]} 16. g5 {[%emt 0:03:39]} a5 {[%emt 0:02:52][%cal Ba6a5,Ba5a4][%mdl 32]} 17. Ne2 {[%emt 0:23:51]} (17. Bf1 $11 Ba6 18. Qg2) 17... a4 $15 {[%emt 0:05:48]} 18. Nbd4 {[%emt 0:00:14] Qc3 is the strong threat.} b4 {[%emt 0:01:35] Inhibits Qc3. White must now prevent ...bxa3.} 19. Nxc6 {[%emt 0:05:06]} Qxc6 {[%emt 0:16:35]} 20. axb4 {[%emt 0:01:22]} Qc4 {[%emt 0:12:00]} 21. Nd4 {[%emt 0:10:26]} Bd7 {[%emt 0:19:33] Prevents b5.} 22. b5 {[%emt 0:07:11]} Qa2 {[%emt 0:08:33]} (22... e5 $15 {stays ahead.} 23. fxe5 dxe5) 23. Qc3 $1 $16 {[%emt 0:00:19] Strongly threatening Kd2. Active counter play!} d5 {[%emt 0:03:24] [#]} 24. exd5 $1 {[%emt 0:02:41][%cal Be4d5,Bd5e6,Be6d7][%mdl 32]} a3 {[%emt 0:02:26] [#]} 25. b3 {[%emt 0:03:02] Threatens to win with dxe6.} Bd6 {[%emt 0:02:21]} (25... O-O {keeps fighting.}) 26. Rhf1 $18 {[%emt 0:01:33] And now dxe6 would win.} hxg5 $2 {[%emt 0:00:56]} (26... Bxb5 27. Nxb5 (27. dxe6 Qb2+ 28. Qxb2 axb2+ 29. Kxb2 Bxf1 $16) 27... Rxb5) 27. dxe6 {[%emt 0:00:20]} Bxf4+ {[%emt 0:01:40] [#]} (27... Qb2+ $142 28. Qxb2 axb2+ 29. Kxb2 fxe6 30. hxg5 Ke7) 28. Rxf4 $1 {[%emt 0:00:06][%mdl 512]} gxf4 {[%emt 0:00:05]} (28... Qb2+ 29. Qxb2) 29. exd7+ {[%emt 0:00:17] Weighted Error Value: White=0.08 (flawless) /Black=0.68} 1-0

[Event "GER-ch Youth-U14 2022"]
[Site "Willingen"]
[Date "2022.06.05"]
[Round "1.5"]
[White "Fruth, David"]
[Black "Besou, Hussain"]
[Result "0-1"]
[ECO "B50"]
[WhiteElo "1648"]
[BlackElo "2094"]
[Annotator "TA"]
[PlyCount "60"]
[EventDate "2022.06.05"]
[EventType "swiss"]
[EventRounds "9"]
[EventCountry "GER"]
[SourceTitle "playchess.com"]
[Source "ChessBase"]
[SourceQuality "1"]
[TimeControl "40/4500+30:900+30"]

{[%evp 14,60,-45,-47,-8,-18,-15,-18,-6,-7,-11,-20,-1,-6,0,-27,-28,-46,-41,-42,-22,-45,-39,-33,-22,-73,-70,-75,-81,-100,-91,-105,-103,-115,-110,-101,-98,-117,-127,-144,-133,-145,-135,-218,-189,-321,-307,-1004,-864]} 1. e4 {[%emt 0:00:00]} c5 {[%emt 0:00:00][%cal Bc7c5,Bc5d4][%mdl 32]} 2. Nf3 {[%emt 0:00:00]} d6 {[%emt 0:00:00]} 3. d4 {[%emt 0:00:00]} cxd4 {[%emt 0:00:00]} 4. c3 {[%emt 0:00:00]} Nf6 {[%emt 0:00:00]} 5. e5 {[%emt 0:00:00]} dxe5 {[%emt 0:00:00]} 6. Nxe5 {[%emt 0:00:00]} e6 {[%emt 0:00:00]} 7. Qa4+ {[%emt 0:00:00]} Nbd7 {[%emt 0:00:00]} 8. cxd4 {[%emt 0:07:01]} Be7 {[%emt 0:00:00] B21: Sicilian: 2 f4 and Morra Gambit.} 9. Be2 {[%emt 0:05:02]} O-O {[%emt 0:00:00]} 10. O-O {[%emt 0:01:07]} Nb6 {[%emt 0:00:54] The position is equal.} 11. Qd1 {[%emt 0:00:12]} Nbd5 {[%emt 0:00:44]} 12. Bf3 {[%emt 0:00:13]} Bd7 {[%emt 0:06:42][%cal Bc8d7,Bd7c6,Bc6d5][%mdl 32]} 13. Nc3 {[%emt 0:05:24]} Bc6 {[%emt 0:00:35] [#]} 14. Bxd5 $146 {[%emt 0:01:07]} ({Predecessor:} 14. Bg5 Rc8 15. Re1 Nb4 16. Bxf6 gxf6 17. Nxc6 bxc6 18. a3 Nd5 19. Bxd5 cxd5 20. Re3 {1-0 (41) Kolcak,M (2195)-Mokos,J (2245) Slovakia 2002}) 14... Bxd5 {[%emt 0:00:59]} 15. Bg5 {[%emt 0:01:36]} h6 {[%emt 0:02:02]} 16. Bh4 {[%emt 0:01:38]} Rc8 {[%emt 0:01:00]} 17. Rc1 {[%emt 0:08:58]} a6 {[%emt 0:13:26]} 18. a3 {[%emt 0:02:33]} b5 {[%emt 0:04:28]} 19. f4 {[%emt 0:06:02]} (19. Qd2 $11 {keeps the balance.}) 19... Bb7 $17 {[%emt 0:11:40]} 20. Qd3 {[%emt 0:04:56]} Nd5 {[%emt 0:05:09][%cal Bf6d5,Bd5e7,Be7f5][%mdl 32]} 21. Bxe7 {[%emt 0:01:16]} Nxe7 {[%emt 0:00:22]} 22. Rc2 {[%emt 0:03:02]} Nf5 {[%emt 0:02:35]} 23. Rd2 {[%emt 0:00:23]} f6 {[%emt 0:06:19]} 24. Nf3 {[%emt 0:06:01]} Qb6 {[%emt 0:01:10]} 25. Kh1 {[%emt 0:01:16]} Rfd8 {[%emt 0:00:51]} 26. Rfd1 {[%emt 0:01:17]} Rc4 {[%emt 0:05:46]} 27. Ne2 {[%emt 0:01:45]} Bd5 {[%emt 0:01:53] Black is much more active.} 28. h3 {[%emt 0:06:43]} (28. Ng3 $17 {keeps fighting.}) 28... Qb7 $19 {[%emt 0:00:51]} 29. Neg1 {[%emt 0:01:22]} (29. Rf1 $142) 29... Be4 {[%emt 0:02:52]} 30. Qe2 {[%emt 0:00:43] [#]} (30. Qb3) 30... Ng3+ {[%emt 0:00:06] Weighted Error Value: White=0.40/Black=0.06 (flawless)} 0-1

[Event "GER-ch Youth-U14 2022"]
[Site "Willingen"]
[Date "2022.06.05"]
[Round "1.6"]
[White "Haubold, Christian Lucas"]
[Black "Schwan, Aaron"]
[Result "1-0"]
[ECO "B42"]
[WhiteElo "1921"]
[BlackElo "1671"]
[Annotator "TA"]
[PlyCount "39"]
[EventDate "2022.06.05"]
[EventType "swiss"]
[EventRounds "9"]
[EventCountry "GER"]
[SourceTitle "playchess.com"]
[Source "ChessBase"]
[SourceQuality "1"]
[TimeControl "40/4500+30:900+30"]

{[%evp 12,39,26,8,20,18,17,-4,102,103,135,138,184,192,164,-267,406,398,383,412,580,587,1196,1170,1105,1135,1108,1081,2354,2227]} 1. e4 {[%emt 0:00:00]} c5 {[%emt 0:00:00]} 2. Nf3 {[%emt 0:00:00]} e6 {[%emt 0:00:00]} 3. d4 {[%emt 0:00:00]} cxd4 {[%emt 0:00:00]} 4. Nxd4 {[%emt 0:00:00]} a6 {[%emt 0:00:00]} 5. Bd3 {[%emt 0:00:00]} Qc7 {[%emt 0:00:00]} 6. a3 {[%emt 0:09:22]} Nf6 {[%emt 0:00:00]} 7. Nc3 {[%emt 0:02:19]} b5 {[%emt 0:00:00] B43: Sicilian: Kan Variation: 5 Nc3.} 8. O-O {[%emt 0:05:43]} d6 {[%emt 0:00:00]} 9. f4 {[%emt 0:03:12] [#]} g6 $146 {[%emt 0:03:30] [#]} (9... Bb7 $11) ({Predecessor:} 9... Bb7 10. Kh1 Nbd7 11. Qf3 Be7 12. f5 e5 13. Nde2 h5 14. Bg5 Ng4 15. Bd2 Ndf6 16. h3 d5 17. Be1 Rd8 18. Bg3 Qb6 19. exd5 Rxd5 {½-½ (32) Areshchenko,A (2660)-Ivanchuk,V (2731) Foros 2006}) 10. e5 $1 $16 {[%emt 0:11:08]} Nfd7 {[%emt 0:13:48] [#]} 11. exd6 {[%emt 0:05:01] White is much more active.} Qxd6 {[%emt 0:03:11]} (11... Bxd6 $16 12. Be4 Ra7) 12. Be4 $18 {[%emt 0:01:49]} Ra7 {[%emt 0:05:48]} 13. Qe2 $4 {[%emt 0:01:37][%mdl 8192]} Qb6 {[%emt 0:14:20][%mdl 8192]} (13... Qxd4+ $19 14. Kh1 (14. Be3 $2 Qxe3+ 15. Qxe3 Bc5 $19) 14... Qg7) 14. Be3 {[%emt 0:01:04]} Bc5 {[%emt 0:02:17]} 15. Rad1 {[%emt 0:00:59]} Qd8 {[%emt 0:07:54] [#]} (15... Rc7 {was worth a try.} 16. b4 Bxb4) 16. Nxe6 $1 {[%emt 0:01:28][%mdl 512] White is clearly winning.} fxe6 {[%emt 0:05:25]} (16... Bxe3+ 17. Qxe3) 17. Bxc5 {[%emt 0:00:09]} Nxc5 {[%emt 0:00:37]} 18. Rxd8+ {[%emt 0:00:12]} Kxd8 {[%emt 0:00:01]} 19. Qe3 {[%emt 0:01:10]} Rc7 {[%emt 0:00:11]} 20. Qd4+ {Weighted Error Value: White=0.62/Black=1.14} 1-0